bitfinex/quotes_SOLUSD_20250417
["timestamp","ask_amount","ask_price","bid_price","bid_amount"]
[1744876662652,15.46594784,134.07,134.03,17.26686332]
[1744876664754,15.46594784,134.07,134.03,1.9409655]
[1744876666643,15.46594784,134.07,134.03,9.40184794]
[1744876666844,15.46594784,134.07,134.03,1.9409655]
[1744876668356,7.86491932,134.07,134.03,17.2667983]
[1744876672262,15.32375381,134.07,134.03,17.2667983]
[1744876672655,15.32375381,134.07,134.03,9.40187898]
[1744876672858,7.86491932,134.06,134.03,9.40187898]
[1744876679065,7.86491932,134.06,134.03,1.9409655]
[1744876679273,7.86491932,134.05,134.03,1.9409655]
[1744876679575,7.86491932,134.04,134.03,1.9409655]
[1744876680766,0.28432314,134.06,134.03,1.9409655]
[1744876681076,8.00708089,134.06,134.03,1.9409655]
[1744876681961,7.86491932,134.05,134.03,1.9409655]
[1744876682755,7.86491932,134.04,134.03,1.9409655]
[1744876683855,15.32537888,134.04,134.03,1.9409655]
[1744876684252,7.46045956,134.04,134.03,1.9409655]
[1744876684455,15.32537888,134.04,134.03,1.9409655]
[1744876684663,15.60970202,134.04,134.03,1.9409655]
[1744876686763,98.26,134.05,134.03,1.9409655]
[1744876687086,15.46,134.05,134.03,1.9409655]
[1744876690286,0.063,134.12,134.06,26.0]
[1744876690463,0.063,134.12,134.11,7.86491932]
[1744876691576,0.063,134.12,134.09,7.86491932]
[1744876691782,0.063,134.12,134.08,33.86491932]
[1744876692083,0.063,134.12,134.09,7.45767767]
[1744876692759,0.063,134.12,134.09,15.32259699]
[1744876694481,0.063,134.12,134.11,7.86491932]
[1744876694675,0.063,134.12,134.09,7.45767767]
[1744876694883,0.063,134.12,134.09,15.32259699]
[1744876695881,0.063,134.12,134.09,7.45767767]
[1744876697259,0.063,134.12,134.09,15.32259699]
[1744876698784,0.063,134.12,134.09,7.45767767]
[1744876700281,0.063,134.12,134.09,15.32259699]
[1744876700864,0.063,134.12,134.09,7.45767767]
[1744876701182,7.86491932,134.11,134.06,7.86491932]
[1744876701587,7.86491932,134.11,134.07,7.86491932]
[1744876701768,7.92791932,134.12,134.08,7.86491932]
[1744876701969,7.92791932,134.12,134.09,7.45767767]
[1744876702784,0.063,134.12,134.09,15.32259699]
[1744876703087,0.063,134.12,134.1,7.86491932]
[1744876703290,0.063,134.12,134.09,15.32259699]
[1744876703869,0.063,134.12,134.1,7.86491932]
[1744876704265,0.063,134.12,134.06,26.10771296]
[1744876704487,0.063,134.12,134.1,7.86491932]
[1744876705371,0.063,134.12,134.11,7.86491932]
[1744876706285,0.063,134.12,134.11,15.32148482]
[1744876709087,0.063,134.12,134.1,7.45688468]
[1744876709294,0.063,134.12,134.1,15.321804]
[1744876709996,0.063,134.12,134.11,7.86491932]
[1744876714195,0.063,134.12,134.11,15.32148482]
[1744876714705,0.063,134.12,134.11,41.32148482]
[1744876714873,0.063,134.12,134.11,72.7811621]
[1744876716000,0.063,134.12,134.11,41.32148482]
[1744876725404,0.063,134.12,134.11,33.4565655]
[1744876725601,0.063,134.12,134.1,7.86491932]
[1744876726405,0.063,134.12,134.09,33.45767767]
[1744876726705,0.063,134.12,134.11,7.4565655]
[1744876727199,0.063,134.12,134.1,7.45701146]
[1744876729609,0.063,134.12,134.1,7.86491932]
[1744876730507,0.063,134.12,134.08,44.64442654]
[1744876730708,0.063,134.12,134.09,7.86491932]
[1744876731787,0.063,134.12,134.09,15.32222055]
[1744876732405,0.063,134.12,134.09,7.45730123]
[1744876733310,0.063,134.12,134.08,7.45806177]
[1744876733609,7.86491932,134.11,134.08,7.45806177]
[1744876733805,7.86491932,134.11,134.07,41.32356273]
[1744876733986,7.86491932,134.11,134.05,7.86491932]
[1744876733987,7.86491932,134.1,134.05,7.86491932]
[1744876734812,7.86491932,134.09,134.05,7.86491932]
[1744876735107,89.16,134.11,134.08,7.86491932]
[1744876735304,82.8,134.11,134.08,7.86491932]
[1744876735505,15.503,134.12,134.09,7.86491932]
[1744876735683,0.063,134.12,134.09,7.86491932]
[1744876736111,0.063,134.12,134.09,15.32222448]
[1744876739219,0.063,134.12,134.11,7.86491932]
[1744876740494,0.063,134.13,134.11,54.7645966]
[1744876740714,0.063,134.13,134.12,39.3245966]
[1744876741531,0.063,134.13,134.12,46.78060614]
[1744876741824,82.863,134.18,134.12,72.78060614]
[1744876742132,0.063,134.18,134.17,7.86491932]
[1744876743198,0.063,134.18,134.17,15.31815029]
[1744876748921,0.063,134.18,134.17,41.31815029]
[1744876750314,0.063,134.18,134.17,33.45323097]
[1744876750512,0.063,134.18,134.17,41.31815029]
[1744876750921,0.063,134.18,134.17,33.45323097]
[1744876751315,0.063,134.18,134.17,41.31815029]
[1744876754201,0.063,134.19,134.17,46.77782757]
[1744876754399,1e-08,134.19,134.18,72.77727211]
[1744876756221,1e-08,134.19,134.18,41.31759483]
[1744876760014,1e-08,134.19,134.18,72.77727211]
[1744876762431,1e-08,134.19,134.18,41.31759483]
[1744876773916,1e-08,134.19,134.14,105.63725343]
[1744876773917,9.37231933,134.19,134.15,7.45434215]
[1744876774117,7.86491932,134.18,134.15,7.45434215]
[1744876774810,9.37231933,134.19,134.15,7.45434215]
[1744876776937,9.37231933,134.19,134.15,15.31926147]
[1744876778536,9.37231933,134.19,134.14,15.31947512]
[1744876778850,1.50740001,134.19,134.16,7.86491932]
[1744876779223,1e-08,134.19,134.18,7.86491932]
[1744876779536,1e-08,134.19,134.18,15.31759483]
[1744876781142,1e-08,134.19,134.18,19.75780579]
[1744876782650,1e-08,134.19,134.18,32.06293607]
[1744876783144,1e-08,134.19,134.18,19.75780579]
[1744876784549,1e-08,134.19,134.18,32.06293607]
[1744876784737,1e-08,134.19,134.18,19.75780579]
[1744876799445,1e-08,134.19,134.18,32.06293607]
[1744876800266,1e-08,134.19,134.18,19.75780579]
[1744876801160,1e-08,134.19,134.18,15.3271652]
[1744876801864,1e-08,134.19,134.18,72.82512396]
[1744876804163,1e-08,134.19,134.18,46.82512396]
[1744876805048,0.063,134.2,134.18,46.82512396]
[1744876805253,0.063,134.2,134.19,84.02209731]
[1744876805549,0.063,134.2,134.19,33.87448969]
[1744876805747,0.063,134.2,134.18,7.45267551]
[1744876805952,0.063,134.2,134.19,7.87448969]
[1744876806340,0.063,134.2,134.19,39.37244845]
[1744876806742,0.063,134.24,134.23,26.0]
[1744876807067,0.063,134.24,134.23,41.32438911]
[1744876812265,0.063,134.24,134.23,15.32438911]
[1744876812475,7.623,134.2,134.14,80.7]
[1744876812777,1.5224,134.13,134.12,0.063]
[1744876813676,6.1006,134.14,134.12,33.93748969]
[1744876813860,7.8901,134.17,134.13,7.87448969]
[1744876814060,6.3233,134.17,134.15,7.87448969]
[1744876814357,7.87448969,134.17,134.12,0.063]
[1744876814553,7.87448969,134.15,134.12,0.063]
[1744876814974,23.27448969,134.14,134.12,0.063]
[1744876815181,27.72590946,134.14,134.12,0.063]
[1744876815359,12.32590946,134.13,134.12,0.063]
[1744876815678,20.43930946,134.13,134.12,0.063]
[1744876816069,20.7236326,134.13,134.09,0.063]
[1744876816274,7.45600954,134.12,134.09,0.063]
[1744876817077,27.89485539,134.13,134.09,0.063]
[1744876817469,8.1134,134.13,134.1,12.32590946]
[1744876817670,6.4688,134.17,134.12,24.65181892]
[1744876817879,1.5324,134.2,134.16,12.32590946]
[1744876818074,1.5324,134.2,134.19,12.32590946]
[1744876818272,6.4688,134.21,134.19,12.32590946]
[1744876819386,6.4688,134.21,134.18,12.32590946]
[1744876821891,6.4688,134.21,134.18,19.77855787]
[1744876822066,6.4688,134.21,134.19,12.32590946]
[1744876822470,15.4,134.23,134.2,12.32590946]
[1744876823993,260.06840719,134.24,134.2,12.32590946]
[1744876824187,275.46840719,134.24,134.2,12.32590946]
[1744876824369,260.06840719,134.24,134.19,12.32590946]
[1744876824569,275.46840719,134.24,134.19,12.32590946]
[1744876825300,260.06840719,134.24,134.19,19.77780365]
[1744876825494,275.46840719,134.24,134.19,19.77780365]
[1744876826296,268.01900946,134.24,134.19,19.77780365]
[1744876826801,268.01900946,134.24,134.2,12.32590946]
[1744876827391,252.61900946,134.24,134.2,12.32590946]
[1744876827591,268.01900946,134.24,134.2,12.32590946]
[1744876827891,12.32590946,134.23,134.19,19.77780365]
[1744876829000,268.01900946,134.24,134.19,19.77780365]
[1744876829695,23.3531,134.24,134.21,12.32590946]
[1744876829887,15.463,134.24,134.21,12.32590946]
[1744876830508,12.32590946,134.23,134.19,7.45189419]
[1744876831083,12.32590946,134.23,134.19,19.77780365]
[1744876831693,12.32590946,134.21,134.15,18.63447233]
[1744876831909,12.32590946,134.21,134.17,12.32590946]
[1744876832521,12.32590946,134.22,134.18,12.32590946]
[1744876833996,12.32590946,134.22,134.18,19.77819909]
[1744876834196,12.32590946,134.23,134.18,19.77819909]
[1744876835821,27.78890946,134.24,134.19,12.32590946]
[1744876836026,15.463,134.24,134.2,12.32590946]
[1744876837214,15.463,134.24,134.2,19.77722719]
[1744876839212,27.78890946,134.24,134.2,19.77722719]
[1744876840614,15.463,134.24,134.2,19.77722719]
[1744876841498,15.463,134.24,134.18,7.45267551]
[1744876841720,15.463,134.24,134.2,12.32590946]
[1744876842014,27.78890946,134.24,134.2,12.32590946]
[1744876843416,27.78890946,134.24,134.2,19.77714563]
[1744876843922,0.063,134.24,134.2,19.77714563]
[1744876845415,12.38890946,134.24,134.2,19.77714563]
[1744876846219,12.38890946,134.24,134.18,7.45267551]
[1744876846420,12.38890946,134.24,134.2,12.32590946]
[1744876849332,0.063,134.24,134.21,7.45100961]
[1744876853134,0.063,134.24,134.2,19.77721642]
[1744876853433,0.063,134.24,134.23,12.32590946]
[1744876855641,0.063,134.24,134.23,19.77580888]
[1744876859129,0.063,134.24,134.23,15.32105327]
[1744876861341,0.03,134.29,134.25,44.64964886]
[1744876861544,0.03,134.29,134.28,7.87115385]
[1744876861916,0.03,134.29,134.26,18.64964886]
[1744876862125,0.03,134.29,134.28,7.87115385]
[1744876863338,0.03,134.29,134.28,19.73832746]
[1744876866022,0.03,134.29,134.28,38.38797632]
[1744876867530,1e-08,134.29,134.28,64.38797632]
[1744876869334,1e-08,134.29,134.28,64.67229946]
[1744876870032,1e-08,134.29,134.28,64.38797632]
[1744876873122,1e-08,134.29,134.28,7.4471254]
[1744876873523,1e-08,134.29,134.28,19.73832746]
[1744876874514,1e-08,134.29,134.28,45.73832746]
[1744876874715,1e-08,134.29,134.28,64.38797632]
[1744876875513,1e-08,134.3,134.29,18.64964886]
[1744876875719,1e-08,134.3,134.29,55.69954491]
[1744876876646,0.063,134.32,134.31,44.64964886]
[1744876876839,0.063,134.32,134.31,56.94085092]
[1744876878131,1e-08,134.32,134.31,64.38631291]
[1744876880538,0.063,134.34,134.31,95.57549308]
[1744876880740,0.063,134.34,134.33,43.23205298]
[1744876881046,0.063,134.34,134.33,30.94085092]
[1744876881234,0.063,134.34,134.33,43.23205298]
[1744876881753,0.063,134.38,134.34,18.64964886]
[1744876881953,0.063,134.38,134.37,44.64964886]
[1744876882253,0.063,134.43,134.37,83.27265489]
[1744876882437,0.063,134.43,134.41,12.29120206]
[1744876882637,0.063,134.43,134.4,12.29120206]
[1744876883445,0.063,134.43,134.37,33.44213738]
[1744876883636,12.29120206,134.41,134.37,45.73333944]
[1744876884158,12.29120206,134.42,134.37,33.44213738]
[1744876884345,12.29120206,134.42,134.37,45.73333944]
[1744876884730,19.73062149,134.42,134.37,45.73333944]
[1744876885424,12.29120206,134.42,134.37,45.73333944]
[1744876885828,0.063,134.43,134.38,12.29120206]
[1744876886034,0.063,134.43,134.4,12.29120206]
[1744876886250,0.063,134.43,134.4,19.73135666]
[1744876887933,0.063,134.43,134.41,12.29120206]
[1744876888246,0.063,134.43,134.4,12.29120206]
[1744876888431,12.35420206,134.43,134.39,19.73202915]
[1744876888623,12.29120206,134.42,134.38,12.29120206]
[1744876889345,12.35420206,134.43,134.39,12.29120206]
[1744876890548,0.063,134.43,134.4,12.29120206]
[1744876890747,0.063,134.43,134.41,12.29120206]
[1744876891630,0.063,134.43,134.4,12.29120206]
[1744876892452,0.063,134.43,134.4,19.73123452]
[1744876895351,12.35420206,134.43,134.38,7.44158356]
[1744876895553,12.35420206,134.43,134.39,12.29120206]
[1744876895737,12.29120206,134.42,134.38,19.73278562]
[1744876895936,12.35420206,134.43,134.39,12.29120206]
[1744876896139,0.063,134.43,134.39,12.29120206]
[1744876896543,12.35420206,134.43,134.39,12.29120206]
[1744876897662,0.063,134.43,134.39,12.29120206]
[1744876897967,12.35420206,134.43,134.38,19.73278562]
[1744876899864,19.79314106,134.43,134.38,19.73278562]
[1744876900361,12.35420206,134.43,134.38,19.73278562]
[1744876900654,12.29120206,134.42,134.38,19.73278562]
[1744876900846,12.29120206,134.4,134.36,7.44244571]
[1744876901244,12.29120206,134.39,134.36,7.44244571]
[1744876901454,12.29120206,134.38,134.33,15.36]
[1744876901662,12.29120206,134.38,134.34,12.29120206]
[1744876901959,12.29120206,134.38,134.33,53.65120206]
[1744876902269,12.29120206,134.38,134.33,27.65120206]
[1744876902465,12.29120206,134.38,134.33,61.09533971]
[1744876902756,12.29120206,134.38,134.33,45.73533971]
[1744876902943,19.73290821,134.38,134.33,45.73533971]
[1744876903561,12.29120206,134.38,134.33,45.73533971]
[1744876903776,12.29120206,134.38,134.34,12.29120206]
[1744876904545,116.75879319,134.42,134.34,19.73495619]
[1744876904749,12.29120206,134.39,134.35,12.29120206]
[1744876905963,12.29120206,134.4,134.36,7.44269127]
[1744876906845,12.29120206,134.41,134.37,12.29120206]
[1744876907552,27.65120206,134.42,134.38,12.29120206]
[1744876907753,0.063,134.43,134.4,12.29120206]
[1744876907958,0.063,134.43,134.4,7.44047619]
[1744876908160,12.35420206,134.43,134.4,7.44047619]
[1744876909765,12.35420206,134.43,134.39,7.44087763]
[1744876910145,12.29120206,134.41,134.37,19.73313329]
[1744876910457,12.29120206,134.41,134.37,7.44193123]
[1744876911969,12.29120206,134.41,134.37,19.73313329]
[1744876912472,12.29120206,134.42,134.37,19.73313329]
[1744876913648,12.29120206,134.42,134.38,12.29120206]
[1744876913856,0.063,134.43,134.41,12.29120206]
[1744876914062,0.063,134.43,134.38,26.0]
[1744876914381,0.063,134.43,134.4,12.29120206]
[1744876915175,0.063,134.43,134.41,19.73112468]
[1744876915355,0.063,134.43,134.42,12.29120206]
[1744876916479,0.063,134.43,134.42,19.7305712]
[1744876920164,0.063,134.43,134.42,38.38022006]
[1744876921697,0.063,134.43,134.37,18.60433853]
[1744876921884,12.29120206,134.41,134.37,30.89554059]
[1744876922774,12.29120206,134.41,134.38,7.44158356]
[1744876922967,12.29120206,134.41,134.37,7.44188631]
[1744876923482,12.29120206,134.39,134.36,7.44247837]
[1744876923670,12.29120206,134.38,134.35,7.443002]
[1744876923864,12.29120206,134.38,134.34,15.34]
[1744876924084,12.29120206,134.38,134.34,22.78378456]
[1744876924262,12.29120206,134.38,134.34,35.07498662]
[1744876924461,12.29120206,134.38,134.34,19.73498662]
[1744876925076,12.29120206,134.4,134.35,12.29120206]
[1744876925679,82.863,134.43,134.37,38.29120206]
[1744876925885,12.29120206,134.42,134.38,12.29120206]
[1744876926067,12.29120206,134.42,134.37,38.29120206]
[1744876926386,12.29120206,134.41,134.37,38.29120206]
[1744876926989,12.29120206,134.41,134.38,7.44158356]
[1744876927486,12.29120206,134.4,134.35,7.44324525]
[1744876927780,0.28432314,134.42,134.34,7.44356899]
[1744876927781,12.29120206,134.37,134.34,7.44356899]
[1744876928100,12.29120206,134.35,134.32,0.063]
[1744876928865,12.29120206,134.34,134.32,0.063]
[1744876929077,12.29120206,134.35,134.32,0.063]
[1744876929876,12.29120206,134.36,134.32,12.35420206]
[1744876930271,12.29120206,134.36,134.32,0.063]
[1744876930472,13.89750206,134.37,134.32,12.35420206]
[1744876930677,13.89750206,134.37,134.34,12.29120206]
[1744876930678,1.6063,134.37,134.34,12.29120206]
[1744876930880,1.544,134.4,134.36,12.29120206]
[1744876931180,6.0028,134.42,134.39,7.44102983]
[1744876931369,6.0028,134.42,134.39,19.73223189]
[1744876931574,18.29400206,134.42,134.38,19.73255123]
[1744876931888,6.0028,134.42,134.38,19.73255123]
[1744876932462,0.063,134.43,134.39,12.29120206]
[1744876932669,0.063,134.43,134.4,12.29120206]
[1744876932997,0.063,134.43,134.39,12.29120206]
[1744876933173,0.063,134.43,134.4,7.44047619]
[1744876935366,0.063,134.43,134.4,12.29120206]
[1744876935769,0.063,134.43,134.41,12.29120206]
[1744876936189,0.063,134.43,134.4,12.29120206]
[1744876936390,12.35420206,134.43,134.38,7.44158356]
[1744876936593,12.35420206,134.43,134.39,12.29120206]
[1744876936985,0.063,134.43,134.39,12.29120206]
[1744876937387,12.35420206,134.43,134.38,19.73278562]
[1744876938187,12.29120206,134.42,134.38,19.73278562]
[1744876938384,12.29120206,134.41,134.36,12.29120206]
[1744876938585,12.29120206,134.4,134.36,12.29120206]
[1744876939376,12.29120206,134.41,134.36,12.29120206]
[1744876939591,12.29120206,134.41,134.36,19.73357524]
[1744876939990,12.29120206,134.41,134.37,12.29120206]
[1744876940193,15.403,134.43,134.4,12.29120206]
[1744876941500,15.403,134.43,134.39,12.29120206]
[1744876942400,12.29120206,134.42,134.38,12.29120206]
[1744876942590,12.29120206,134.41,134.37,7.44196918]
[1744876942979,12.29120206,134.41,134.37,19.73317124]
[1744876943386,12.29120206,134.42,134.37,19.73317124]
[1744876944479,19.73063907,134.42,134.37,19.73317124]
[1744876944879,12.29120206,134.41,134.37,19.73317124]
[1744876946081,12.29120206,134.42,134.37,19.73317124]
[1744876947984,12.29120206,134.38,134.34,7.44379931]
[1744876948177,12.29120206,134.39,134.34,19.73500137]
[1744876948796,12.29120206,134.39,134.35,12.29120206]
[1744876949002,96.75330206,134.41,134.36,12.29120206]
[1744876949193,1.6621,134.41,134.38,12.29120206]
[1744876949495,82.863,134.43,134.39,12.29120206]
[1744876949797,0.063,134.43,134.39,12.29120206]
[1744876949991,12.35420206,134.43,134.39,12.29120206]
[1744876950195,12.35420206,134.43,134.38,12.29120206]
[1744876950701,12.29120206,134.41,134.37,12.29120206]
[1744876950899,12.29120206,134.42,134.37,12.29120206]
[1744876951097,12.29120206,134.42,134.38,12.29120206]
[1744876952399,12.29120206,134.42,134.38,19.73249802]
[1744876953403,12.29120206,134.41,134.37,7.44205886]
[1744876953600,0.28432314,134.41,134.35,12.29120206]
[1744876953802,12.29120206,134.41,134.36,12.29120206]
[1744876954604,12.29120206,134.41,134.37,19.73333944]
[1744876955201,82.8,134.42,134.37,19.73333944]
[1744876955404,0.34732314,134.43,134.38,12.29120206]
[1744876955405,12.35420206,134.43,134.38,12.29120206]
[1744876955618,0.063,134.43,134.39,12.29120206]
[1744876955786,12.35420206,134.43,134.38,12.29120206]
[1744876956604,19.79310793,134.43,134.38,19.7323851]
[1744876956798,12.29120206,134.42,134.38,7.44118304]
[1744876957582,12.29120206,134.42,134.37,19.73309769]
[1744876957991,12.29120206,134.4,134.35,7.44324525]
[1744876958195,12.29120206,134.38,134.35,7.44324525]
[1744876958588,12.29120206,134.39,134.35,7.44324525]
[1744876958788,12.29120206,134.37,134.32,12.35420206]
[1744876959120,12.29120206,134.36,134.32,7.50782635]
[1744876959403,12.29120206,134.36,134.32,19.79902841]
[1744876959583,82.8,134.38,134.33,12.29120206]
[1744876959788,12.29120206,134.37,134.33,12.29120206]
[1744876960707,12.29120206,134.36,134.32,7.50764312]
[1744876961085,12.29120206,134.36,134.32,19.79884518]
[1744876961707,12.29120206,134.37,134.32,19.79884518]
[1744876961903,12.29120206,134.36,134.32,0.063]
[1744876962898,12.29120206,134.36,134.32,19.79898822]
[1744876963405,82.8,134.38,134.35,12.29120206]
[1744876963613,23.4501,134.39,134.35,12.29120206]
[1744876963915,12.29120206,134.4,134.35,12.29120206]
[1744876964094,12.29120206,134.39,134.35,12.29120206]
[1744876964690,12.29120206,134.39,134.35,19.73393461]
[1744876966210,12.29120206,134.39,134.35,7.44273255]
[1744876966614,12.29120206,134.38,134.35,7.44273255]
[1744876967309,12.29120206,134.39,134.35,7.44273255]
[1744876967501,12.29120206,134.38,134.35,7.44273255]
[1744876968121,12.29120206,134.39,134.35,7.44273255]
[1744876968708,12.29120206,134.39,134.35,19.73393461]
[1744876973021,12.29120206,134.39,134.34,19.73500137]
[1744876975018,12.29120206,134.4,134.35,12.29120206]
[1744876975223,12.29120206,134.4,134.36,12.29120206]
[1744876976520,12.29120206,134.4,134.35,12.29120206]
[1744876976720,12.29120206,134.39,134.35,12.29120206]
[1744876977908,12.29120206,134.4,134.35,19.7338951]
[1744876978217,21.6142,134.43,134.39,12.29120206]
[1744876978422,33.90540206,134.43,134.39,12.29120206]
[1744876978922,41.34433371,134.43,134.38,12.29120206]
[1744876979500,33.90540206,134.43,134.38,12.29120206]
[1744876980322,33.90540206,134.43,134.39,7.44102983]
[1744876980620,0.063,134.43,134.39,19.73223189]
[1744876980821,0.063,134.43,134.4,12.29120206]
[1744876981223,0.063,134.43,134.41,12.29120206]
[1744876982302,0.063,134.43,134.42,19.7305712]
[1744876983018,0.063,134.43,134.42,7.43936914]
[1744876984428,0.063,134.43,134.42,19.7305712]
[1744876985507,0.03,134.46,134.45,26.0]
[1744876985706,0.03,134.46,134.45,58.59115092]
[1744876985928,0.03,134.49,134.48,26.0]
[1744876986143,0.03,134.49,134.48,38.29120206]
[1744876986426,0.03,134.49,134.48,45.72725203]
[1744876987222,0.03,134.49,134.48,64.37690089]
[1744876987815,0.03,134.49,134.48,45.72725203]
[1744877004031,12.32120206,134.55,134.48,82.96702581]
[1744877004032,0.03,134.55,134.48,82.96702581]
[1744877004218,0.03,134.55,134.51,12.29120206]
[1744877006136,0.03,134.55,134.51,19.72559355]
[1744877007949,12.29120206,134.54,134.51,7.43439149]
[1744877008633,12.32120206,134.55,134.51,7.43439149]
[1744877008830,12.32120206,134.55,134.51,19.72559355]
[1744877008831,0.03,134.55,134.51,19.72559355]
[1744877010323,0.03,134.55,134.51,45.72559355]
[1744877014425,0.03,134.55,134.54,12.29120206]
[1744877015938,0.03,134.55,134.53,12.29120206]
[1744877016124,0.03,134.55,134.52,12.29120206]
[1744877016325,12.29120206,134.53,134.48,12.29120206]
[1744877016744,12.29120206,134.53,134.49,12.29120206]
[1744877017048,1.5633,134.54,134.5,12.29120206]
[1744877017434,1.5633,134.54,134.5,19.72610969]
[1744877018237,12.29120206,134.53,134.48,12.29120206]
[1744877018443,12.29120206,134.53,134.48,19.7272497]
[1744877019652,12.29120206,134.53,134.48,45.7272497]
[1744877019844,12.29120206,134.53,134.49,12.29120206]
[1744877021349,19.72463773,134.53,134.48,45.7272497]
[1744877021652,19.72463773,134.53,134.48,19.7272497]
[1744877021853,12.29120206,134.52,134.48,12.29120206]
[1744877022049,12.29120206,134.51,134.46,45.72810337]
[1744877022346,12.29120206,134.5,134.46,45.72810337]
[1744877022550,12.29120206,134.51,134.46,45.72810337]
[1744877024050,90.51843721,134.52,134.47,12.29120206]
[1744877024256,102.80963927,134.52,134.47,12.29120206]
[1744877024949,90.51843721,134.52,134.47,12.29120206]
[1744877025268,12.29120206,134.51,134.47,7.43621049]
[1744877025445,12.29120206,134.51,134.46,45.72830323]
[1744877025760,12.29120206,134.51,134.47,12.29120206]
[1744877026358,90.51843721,134.52,134.47,19.72739813]
[1744877026738,12.29120206,134.51,134.47,19.72739813]
[1744877027256,12.29120206,134.51,134.47,7.43619607]
[1744877027853,19.72563213,134.51,134.46,45.72818134]
[1744877028035,12.29120206,134.5,134.46,19.72818134]
[1744877028241,12.29120206,134.5,134.43,19.7300178]
[1744877028242,12.29120206,134.48,134.43,19.7300178]
[1744877028444,1.5453,134.49,134.44,12.29120206]
[1744877028750,12.29120206,134.48,134.44,12.29120206]
[1744877029535,12.29120206,134.48,134.45,7.43770918]
[1744877030736,13.83650206,134.49,134.45,19.72891124]
[1744877032256,13.83650206,134.49,134.45,7.43770918]
[1744877033551,12.29120206,134.48,134.44,19.72924894]
[1744877033751,12.29120206,134.46,134.42,38.29120206]
[1744877034271,12.29120206,134.46,134.43,7.43847084]
[1744877034443,12.29120206,134.46,134.42,7.43917945]
[1744877035732,12.29120206,134.45,134.42,7.43917945]
[1744877036334,12.29120206,134.46,134.42,7.43917945]
[1744877036947,12.29120206,134.46,134.42,19.73038151]
[1744877037359,82.8,134.48,134.43,12.29120206]
[1744877037670,21.55646399,134.49,134.45,7.43770918]
[1744877037839,21.41430242,134.49,134.45,7.43770918]
[1744877038046,12.29120206,134.48,134.45,7.43770918]
[1744877038450,12.29120206,134.48,134.44,7.43799542]
[1744877039074,9.12310036,134.49,134.44,7.43799542]
[1744877039251,12.29120206,134.48,134.44,7.43799542]
[1744877039571,12.29120206,134.47,134.43,7.43858033]
[1744877039761,12.29120206,134.46,134.43,7.43858033]
[1744877040161,12.29120206,134.47,134.43,7.43858033]
[1744877041856,12.29120206,134.47,134.43,19.72978239]
[1744877043260,7.84930833,134.47,134.43,15.28788866]
[1744877048293,9.26533784,134.49,134.41,7.50292262]
[1744877048294,7.84930833,134.44,134.41,7.50292262]
[1744877048681,7.84930833,134.44,134.41,0.063]
[1744877048878,7.84930833,134.43,134.41,0.063]
[1744877051784,7.84930833,134.44,134.41,0.063]
[1744877052595,82.8,134.47,134.42,7.84930833]
[1744877052897,90.64930833,134.47,134.42,7.84930833]
[1744877053578,7.84930833,134.46,134.41,0.063]
[1744877053766,7.84930833,134.46,134.42,7.84930833]
[1744877053969,7.84930833,134.46,134.42,15.28816919]
[1744877055381,90.64930833,134.47,134.42,15.28816919]
[1744877056168,82.8,134.47,134.43,7.84930833]
[1744877056371,82.8,134.47,134.44,7.84930833]
[1744877056765,82.8,134.47,134.43,7.84930833]
[1744877057487,82.8,134.47,134.44,7.43826242]
[1744877061704,7.84930833,134.48,134.44,7.43826242]
[1744877061989,7.84930833,134.47,134.44,7.43826242]
[1744877064184,8.1602,134.49,134.44,7.84930833]
[1744877064594,7.84930833,134.48,134.44,7.84930833]
[1744877065096,7.84930833,134.46,134.42,26.0]
[1744877065401,7.84930833,134.45,134.41,0.063]
[1744877065582,7.84930833,134.46,134.41,7.91230833]
[1744877066475,7.84930833,134.46,134.42,7.43936914]
[1744877066684,7.84930833,134.46,134.42,15.28867747]
[1744877069578,7.84930833,134.47,134.43,7.84930833]
[1744877069999,90.64930833,134.48,134.43,7.84930833]
[1744877070299,82.8,134.48,134.45,7.84930833]
[1744877070474,7.84930833,134.49,134.45,7.84930833]
[1744877070678,7.84930833,134.49,134.46,7.43715603]
[1744877071697,7.84930833,134.48,134.45,7.43746196]
[1744877073005,7.84930833,134.48,134.44,7.43826242]
[1744877073217,7.84930833,134.47,134.43,7.43859223]
[1744877073695,7.84930833,134.47,134.43,15.28790056]
[1744877074101,7.43575555,134.49,134.44,7.84930833]
[1744877074102,7.84930833,134.48,134.44,7.84930833]
[1744877075795,0.28432314,134.49,134.45,7.43770918]